fUSD/lending_fUSD_20260616
["ID","MTS","AMOUNT","RATE_DAILY","PERIOD"]
[425138589,1781548240000,-2757.26991439,0.0001295,2]
[425138590,1781548240000,-500.0,0.00013143,2]
[425138605,1781548240000,-150.0,0.00013315,2]
[425138595,1781548240000,-350.0,0.00013311,2]
[425138598,1781548240000,-150.0,0.00013315,2]
[425138596,1781548240000,-150.0,0.00013315,2]
[425138594,1781548240000,-8562.6,0.00013285,2]
[425138597,1781548240000,-150.0,0.00013315,2]
[425138600,1781548240000,-150.0,0.00013315,2]
[425138599,1781548240000,-150.0,0.00013315,2]
[425138604,1781548240000,-150.0,0.00013315,2]
[425138603,1781548240000,-150.0,0.00013315,2]
[425138602,1781548240000,-150.0,0.00013315,2]
[425138606,1781548240000,-204.09879041,0.00013315,2]
[425138607,1781548240000,-321.03275511,0.00013315,2]
[425138610,1781548240000,-150.0,0.00013315,2]
[425138608,1781548240000,-150.0,0.00013315,2]
[425138609,1781548240000,-250.40554899,0.00013315,2]
[425138612,1781548240000,-250.40554899,0.00013345,2]
[425138613,1781548240000,-150.0,0.00013347,2]
[425138640,1781548240000,-321.03275511,0.0001342,2]
[425138634,1781548240000,-250.40554899,0.00013405,2]
[425138636,1781548240000,-150.0,0.00013412,2]
[425138674,1781548240000,-250.40554899,0.00013509,2]
[425138671,1781548240000,-150.0,0.00013508,2]
[425138668,1781548240000,-150.0,0.000135,2]
[425138673,1781548240000,-321.03275511,0.00013509,2]
[425138670,1781548240000,-150.0,0.00013505,2]
[425138675,1781548240000,-150.0,0.00013512,2]
[425138672,1781548240000,-150.0,0.00013508,2]
[425138676,1781548240000,-150.0,0.00013512,2]
[425138679,1781548240000,-250.40554899,0.00013524,2]
[425138678,1781548240000,-321.03275511,0.00013524,2]
[425138669,1781548240000,-150.0,0.000135,2]
[425138683,1781548240000,-321.03275511,0.00013539,2]
[425138685,1781548240000,-150.0,0.0001354,2]
[425138682,1781548240000,-150.0,0.00013537,2]
[425138680,1781548240000,-150.0,0.00013526,2]
[425138684,1781548240000,-250.40554899,0.00013539,2]
[425138688,1781548240000,-150.0,0.00013545,2]
[425138689,1781548240000,-150.0,0.00013545,2]
[425138686,1781548240000,-8152.88169685,0.00013542,2]
[425138687,1781548240000,-150.0,0.00013543,2]
[425138690,1781548240000,-150.0,0.00013546,2]
[425138639,1781548240000,-500.0,0.00013417,2]
[425138681,1781548240000,-339.35741143,0.00013532,2]
[425138667,1781548240000,-250.40554899,0.00013494,2]
[425138677,1781548240000,-150.0,0.00013515,2]
[425138666,1781548240000,-321.03275511,0.00013494,2]
[425138641,1781548240000,-250.40554899,0.0001342,2]
[425138665,1781548240000,-500.0,0.00013479,2]
[425138645,1781548240000,-250.40554899,0.00013435,2]
[425138653,1781548240000,-250.40554899,0.0001345,2]
[425138654,1781548240000,-150.0,0.00013454,2]
[425138651,1781548240000,-150.0,0.00013447,2]
[425138652,1781548240000,-321.03275511,0.0001345,2]
[425138650,1781548240000,-150.0,0.00013447,2]
[425138644,1781548240000,-321.03275511,0.00013435,2]
[425138647,1781548240000,-1493.1,0.00013439,2]
[425138649,1781548240000,-150.0,0.00013444,2]
[425138646,1781548240000,-150.0,0.00013435,2]
[425138656,1781548240000,-321.03275511,0.00013465,2]
[425138655,1781548240000,-150.0,0.00013463,2]
[425138658,1781548240000,-150.0,0.00013467,2]
[425138664,1781548240000,-250.40554899,0.00013479,2]
[425138657,1781548240000,-250.40554899,0.00013465,2]
[425138661,1781548240000,-150.0,0.00013479,2]
[425138660,1781548240000,-150.0,0.00013476,2]
[425138659,1781548240000,-150.0,0.00013475,2]
[425138648,1781548240000,-150.0,0.00013444,2]
[425138663,1781548240000,-321.03275511,0.00013479,2]
[425138662,1781548240000,-150.0,0.00013479,2]
[425138726,1781548241000,-150.0,0.00013644,2]
[425138722,1781548241000,-150.0,0.00013635,2]
[425138723,1781548241000,-150.0,0.00013637,2]
[425138725,1781548241000,-150.0,0.00013639,2]
[425138724,1781548241000,-150.0,0.00013637,2]
[425138719,1781548241000,-150.0,0.00013619,2]
[425138720,1781548241000,-321.03275511,0.00013629,2]
[425138717,1781548241000,-321.03275511,0.00013614,2]
[425138728,1781548241000,-321.03275511,0.00013644,2]
[425138721,1781548241000,-250.40554899,0.00013629,2]
[425138729,1781548241000,-250.40554899,0.00013644,2]
[425138741,1781548241000,-150.0,0.00013685,2]
[425138736,1781548241000,-250.40554899,0.00013674,2]
[425138733,1781548241000,-250.40554899,0.00013659,2]
[425138734,1781548241000,-150.0,0.00013669,2]
[425138730,1781548241000,-150.0,0.00013648,2]
[425138735,1781548241000,-321.03275511,0.00013674,2]
[425138737,1781548241000,-150.0,0.00013675,2]
[425138739,1781548241000,-150.0,0.00013677,2]
[425138740,1781548241000,-150.0,0.00013685,2]
[425138738,1781548241000,-150.0,0.00013677,2]
[425138743,1781548241000,-250.40554899,0.00013689,2]
[425138727,1781548241000,-150.0,0.00013644,2]
[425138731,1781548241000,-150.0,0.00013656,2]
[425138718,1781548241000,-250.40554899,0.00013614,2]
[425138693,1781548241000,-150.0,0.00013555,2]
[425138715,1781548241000,-150.0,0.00013611,2]
[425138746,1781548241000,-300.0,0.00013697,2]
[425138691,1781548241000,-321.03275511,0.00013554,2]
[425138692,1781548241000,-250.40554899,0.00013554,2]
[425138696,1781548241000,-321.03275511,0.00013569,2]
[425138695,1781548241000,-150.0,0.00013562,2]
[425138694,1781548241000,-151.0,0.00013555,2]
[425138697,1781548241000,-250.40554899,0.00013569,2]
[425138698,1781548241000,-116548.86713583,0.0001357,2]
[425138701,1781548241000,-150.0,0.00013574,2]
[425138699,1781548241000,-150.0,0.00013572,2]
[425138704,1781548241000,-150.0,0.00013581,2]
[425138716,1781548241000,-150.0,0.00013611,2]
[425138702,1781548241000,-150.0,0.00013578,2]
[425138700,1781548241000,-150.0,0.00013572,2]
[425138705,1781548241000,-321.03275511,0.00013584,2]
[425138706,1781548241000,-250.40554899,0.00013584,2]
[425138707,1781548241000,-8562.6,0.00013591,2]
[425138708,1781548241000,-150.0,0.00013592,2]
[425138714,1781548241000,-150.0,0.00013611,2]
[425138710,1781548241000,-321.03275511,0.00013599,2]
[425138709,1781548241000,-150.0,0.00013595,2]
[425138713,1781548241000,-308.13,0.00013605,2]
[425138711,1781548241000,-250.40554899,0.00013599,2]
[425138712,1781548241000,-150.0,0.00013605,2]
[425138703,1781548241000,-150.0,0.00013578,2]
[425138742,1781548241000,-321.03275511,0.00013689,2]
[425138732,1781548241000,-321.03275511,0.00013659,2]
[425138747,1781548241000,-503.57198463,0.00013698,2]
[425138774,1781548241000,-500.0,0.00013698,2]
[425138777,1781548241000,-500.0,0.00013698,2]
[425138784,1781548241000,-500.0,0.00013698,2]
[425138773,1781548241000,-500.0,0.00013698,2]
[425138783,1781548241000,-500.0,0.00013698,2]
[425138782,1781548241000,-500.0,0.00013698,2]
[425138776,1781548241000,-500.0,0.00013698,2]
[425138778,1781548241000,-500.0,0.00013698,2]
[425138781,1781548241000,-500.0,0.00013698,2]
[425138780,1781548241000,-500.0,0.00013698,2]
[425138785,1781548241000,-500.0,0.00013698,2]
[425138775,1781548241000,-500.0,0.00013698,2]
[425138787,1781548241000,-500.0,0.00013698,2]
[425138791,1781548241000,-500.0,0.00013698,2]
[425138790,1781548241000,-500.0,0.00013698,2]
[425138793,1781548241000,-500.0,0.00013698,2]
[425138792,1781548241000,-288.93748292,0.00013698,2]
[425138789,1781548241000,-500.0,0.00013698,2]
[425138794,1781548241000,-580.14325796,0.00013698,2]
[425138795,1781548241000,-500.0,0.00013698,2]
[425138798,1781548241000,-500.0,0.00013698,2]
[425138797,1781548241000,-500.0,0.00013698,2]
[425138796,1781548241000,-515.72962674,0.00013698,2]
[425138744,1781548241000,-500.0,0.00013691,2]
[425138788,1781548241000,-500.0,0.00013698,2]
[425138779,1781548241000,-500.0,0.00013698,2]
[425138786,1781548241000,-500.0,0.00013698,2]
[425138770,1781548241000,-481.27395787,0.00013698,2]
[425138769,1781548241000,-500.0,0.00013698,2]
[425138745,1781548241000,-150.0,0.00013694,2]
[425138749,1781548241000,-500.0,0.00013698,2]
[425138750,1781548241000,-500.0,0.00013698,2]
[425138753,1781548241000,-366.22778558,0.00013698,2]
[425138755,1781548241000,-500.0,0.00013698,2]
[425138760,1781548241000,-500.0,0.00013698,2]
[425138754,1781548241000,-500.0,0.00013698,2]
[425138799,1781548241000,-500.0,0.00013698,2]
[425138759,1781548241000,-500.0,0.00013698,2]
[425138751,1781548241000,-500.0,0.00013698,2]
[425138757,1781548241000,-500.0,0.00013698,2]
[425138756,1781548241000,-500.0,0.00013698,2]
[425138748,1781548241000,-500.0,0.00013698,2]
[425138761,1781548241000,-500.0,0.00013698,2]
[425138758,1781548241000,-500.0,0.00013698,2]
[425138762,1781548241000,-500.0,0.00013698,2]
[425138772,1781548241000,-500.0,0.00013698,2]
[425138765,1781548241000,-500.0,0.00013698,2]
[425138763,1781548241000,-500.0,0.00013698,2]
[425138766,1781548241000,-360.31710337,0.00013698,2]
[425138764,1781548241000,-500.0,0.00013698,2]
[425138752,1781548241000,-500.0,0.00013698,2]
[425138767,1781548241000,-580.74875671,0.00013698,2]
[425138771,1781548241000,-506.4,0.00013698,2]
[425138768,1781548241000,-500.0,0.00013698,2]
[425138839,1781548242000,-505.47463781,0.00013698,2]
[425138830,1781548242000,-541.96881996,0.00013698,2]
[425138836,1781548242000,-502.33937065,0.00013698,2]
[425138834,1781548242000,-500.0,0.00013698,2]
[425138844,1781548242000,-500.0,0.00013698,2]
[425138825,1781548242000,-500.0,0.00013698,2]
[425138832,1781548242000,-500.0,0.00013698,2]
[425138841,1781548242000,-500.0,0.00013698,2]
[425138842,1781548242000,-500.0,0.00013698,2]
[425138833,1781548242000,-500.0,0.00013698,2]
[425138837,1781548242000,-500.0,0.00013698,2]
[425138843,1781548242000,-207.98190929,0.00013698,2]
[425138835,1781548242000,-504.10545625,0.00013698,2]
[425138850,1781548242000,-500.0,0.00013698,2]
[425138840,1781548242000,-500.0,0.00013698,2]
[425138846,1781548242000,-504.03050373,0.00013698,2]
[425138845,1781548242000,-506.73162818,0.00013698,2]
[425138853,1781548242000,-776.33,0.00013698,2]
[425138855,1781548242000,-776.33,0.00013698,2]
[425138848,1781548242000,-500.0,0.00013698,2]
[425138852,1781548242000,-493.98862473,0.00013698,2]
[425138854,1781548242000,-776.33,0.00013698,2]
[425138847,1781548242000,-500.96269676,0.00013698,2]
[425138849,1781548242000,-500.0,0.00013698,2]
[425138856,1781548242000,-776.33,0.00013698,2]
[425138838,1781548242000,-647.74685789,0.00013698,2]
[425138827,1781548242000,-500.0,0.00013698,2]
[425138800,1781548242000,-500.0,0.00013698,2]
[425138829,1781548242000,-500.0,0.00013698,2]
[425138851,1781548242000,-500.0,0.00013698,2]
[425138801,1781548242000,-500.0,0.00013698,2]
[425138807,1781548242000,-500.0,0.00013698,2]
[425138805,1781548242000,-178.91382127,0.00013698,2]
[425138804,1781548242000,-548.5,0.00013698,2]
[425138802,1781548242000,-500.0,0.00013698,2]
[425138806,1781548242000,-500.0,0.00013698,2]
[425138803,1781548242000,-500.0,0.00013698,2]
[425138808,1781548242000,-500.0,0.00013698,2]
[425138811,1781548242000,-500.0,0.00013698,2]
[425138815,1781548242000,-500.0,0.00013698,2]
[425138810,1781548242000,-500.0,0.00013698,2]
[425138826,1781548242000,-500.0,0.00013698,2]
[425138819,1781548242000,-500.0,0.00013698,2]
[425138818,1781548242000,-505.41265414,0.00013698,2]
[425138813,1781548242000,-500.0,0.00013698,2]
[425138816,1781548242000,-300.27555008,0.00013698,2]
[425138817,1781548242000,-500.0,0.00013698,2]
[425138814,1781548242000,-500.0,0.00013698,2]
[425138831,1781548242000,-500.0,0.00013698,2]
[425138820,1781548242000,-500.0,0.00013698,2]
[425138821,1781548242000,-500.0,0.00013698,2]
[425138822,1781548242000,-500.0,0.00013698,2]
[425138823,1781548242000,-500.0,0.00013698,2]
[425138824,1781548242000,-500.0,0.00013698,2]
[425138828,1781548242000,-500.0,0.00013698,2]
[425138809,1781548242000,-500.0,0.00013698,2]
[425138857,1781548242000,-776.33,0.00013698,2]
[425138812,1781548242000,-500.0,0.00013698,2]
[425138865,1781548242000,-776.33,0.00013698,2]
[425138886,1781548242000,-500.0,0.00013698,2]
[425138890,1781548242000,-500.0,0.00013698,2]
[425138892,1781548242000,-5625.24,0.00013698,2]
[425138894,1781548242000,-5625.24,0.00013698,2]
[425138895,1781548242000,-5625.24,0.00013698,2]
[425138897,1781548242000,-5625.24,0.00013698,2]
[425138896,1781548242000,-5625.24,0.00013698,2]
[425138893,1781548242000,-5625.24,0.00013698,2]
[425138899,1781548242000,-5625.24,0.00013698,2]
[425138900,1781548242000,-5625.24,0.00013698,2]
[425138898,1781548242000,-5625.24,0.00013698,2]
[425138901,1781548242000,-5625.24,0.00013698,2]
[425138887,1781548242000,-500.0,0.00013698,2]
[425138917,1781548242000,-5625.30890004,0.00013698,2]
[425138903,1781548242000,-5625.24,0.00013698,2]
[425138907,1781548242000,-5625.24,0.00013698,2]
[425138910,1781548242000,-5625.24,0.00013698,2]
[425138905,1781548242000,-5625.24,0.00013698,2]
[425138902,1781548242000,-5625.24,0.00013698,2]
[425138858,1781548242000,-776.33,0.00013698,2]
[425138908,1781548242000,-5625.24,0.00013698,2]
[425138909,1781548242000,-5625.24,0.00013698,2]
[425138913,1781548242000,-5625.24,0.00013698,2]
[425138911,1781548242000,-5625.24,0.00013698,2]
[425138915,1781548242000,-5625.24,0.00013698,2]
[425138916,1781548242000,-5625.24,0.00013698,2]
[425138904,1781548242000,-5625.24,0.00013698,2]
[425138885,1781548242000,-500.0,0.00013698,2]
[425138906,1781548242000,-5625.24,0.00013698,2]
[425138888,1781548242000,-500.0,0.00013698,2]
[425138889,1781548242000,-500.0,0.00013698,2]
[425138859,1781548242000,-776.33,0.00013698,2]
[425138862,1781548242000,-776.33,0.00013698,2]
[425138860,1781548242000,-776.33,0.00013698,2]
[425138864,1781548242000,-776.33,0.00013698,2]
[425138861,1781548242000,-776.33,0.00013698,2]
[425138867,1781548242000,-776.33,0.00013698,2]
[425138866,1781548242000,-776.33,0.00013698,2]
[425138868,1781548242000,-776.33,0.00013698,2]
[425138869,1781548242000,-776.33,0.00013698,2]
[425138870,1781548242000,-776.33,0.00013698,2]
[425138877,1781548242000,-500.0,0.00013698,2]
[425138872,1781548242000,-776.33,0.00013698,2]
[425138863,1781548242000,-776.33,0.00013698,2]
[425138873,1781548242000,-776.33,0.00013698,2]
[425138878,1781548242000,-500.0,0.00013698,2]
[425138882,1781548242000,-500.0,0.00013698,2]
[425138883,1781548242000,-500.0,0.00013698,2]
[425138891,1781548242000,-509.13283016,0.00013698,2]
[425138880,1781548242000,-500.0,0.00013698,2]
[425138884,1781548242000,-248.5679605,0.00013698,2]
[425138876,1781548242000,-776.51452757,0.00013698,2]
[425138871,1781548242000,-776.33,0.00013698,2]
[425138874,1781548242000,-776.33,0.00013698,2]
[425138875,1781548242000,-776.33,0.00013698,2]
[425138879,1781548242000,-500.0,0.00013698,2]
[425138881,1781548242000,-500.0,0.00013698,2]
[425138962,1781548243000,-500.0,0.00013698,2]
[425138968,1781548243000,-500.0,0.00013698,2]
[425138966,1781548243000,-500.0,0.00013698,2]
[425138953,1781548243000,-500.0,0.00013698,2]
[425138964,1781548243000,-500.0,0.00013698,2]
[425138950,1781548243000,-500.0,0.00013698,2]
[425138947,1781548243000,-500.0,0.00013698,2]
[425138970,1781548243000,-500.0,0.00013698,2]
[425138975,1781548243000,-500.0,0.00013698,2]
[425138985,1781548243000,-500.0,0.00013698,2]
[425138977,1781548243000,-500.0,0.00013698,2]
[425138979,1781548243000,-500.0,0.00013698,2]
[425138982,1781548243000,-500.0,0.00013698,2]
[425138984,1781548243000,-500.0,0.00013698,2]
[425138987,1781548243000,-500.0,0.00013698,2]
[425138988,1781548243000,-490.74445458,0.00013698,2]
[425138986,1781548243000,-500.0,0.00013698,2]
[425138959,1781548243000,-500.0,0.00013698,2]
[425138972,1781548243000,-500.0,0.00013698,2]
[425138956,1781548243000,-500.0,0.00013698,2]
[425138922,1781548243000,-500.0,0.00013698,2]
[425138938,1781548243000,-500.0,0.00013698,2]
[425138925,1781548243000,-500.0,0.00013698,2]
[425138930,1781548243000,-500.0,0.00013698,2]
[425138929,1781548243000,-500.0,0.00013698,2]
[425138926,1781548243000,-500.0,0.00013698,2]
[425138928,1781548243000,-500.0,0.00013698,2]
[425138919,1781548243000,-500.0,0.00013698,2]
[425138918,1781548243000,-500.0,0.00013698,2]
[425138920,1781548243000,-500.0,0.00013698,2]
[425138931,1781548243000,-500.0,0.00013698,2]
[425138935,1781548243000,-500.0,0.00013698,2]
[425138939,1781548243000,-500.0,0.00013698,2]
[425138945,1781548243000,-500.0,0.00013698,2]
[425138937,1781548243000,-500.0,0.00013698,2]
[425138941,1781548243000,-500.0,0.00013698,2]
[425138936,1781548243000,-500.0,0.00013698,2]
[425138933,1781548243000,-500.0,0.00013698,2]
[425138942,1781548243000,-500.0,0.00013698,2]
[425138943,1781548243000,-500.0,0.00013698,2]
[425138944,1781548243000,-500.0,0.00013698,2]
[425138946,1781548243000,-500.0,0.00013698,2]
[425138989,1781548243000,-437.87018499,0.00013698,2]
[425138992,1781548243000,-500.0,0.00013698,2]
[425138991,1781548243000,-500.0,0.00013698,2]
[425139016,1781548243000,-500.0,0.00013698,2]
[425139020,1781548243000,-500.0,0.00013698,2]
[425139021,1781548243000,-500.0,0.00013698,2]
[425139018,1781548243000,-500.0,0.00013698,2]
[425139015,1781548243000,-500.0,0.00013698,2]
[425139019,1781548243000,-500.0,0.00013698,2]
[425139017,1781548243000,-500.0,0.00013698,2]
[425139023,1781548243000,-500.0,0.00013698,2]
[425139026,1781548243000,-500.0,0.00013698,2]
[425139025,1781548243000,-500.0,0.00013698,2]
[425139032,1781548243000,-500.0,0.00013698,2]
[425139029,1781548243000,-500.0,0.00013698,2]
[425139027,1781548243000,-500.0,0.00013698,2]
[425139030,1781548243000,-500.0,0.00013698,2]
[425139031,1781548243000,-500.0,0.00013698,2]
[425139028,1781548243000,-500.0,0.00013698,2]
[425139034,1781548243000,-500.0,0.00013698,2]
[425139033,1781548243000,-500.0,0.00013698,2]
[425138990,1781548243000,-500.0,0.00013698,2]
[425139011,1781548243000,-500.0,0.00013698,2]
[425139013,1781548243000,-500.0,0.00013698,2]
[425139024,1781548243000,-500.0,0.00013698,2]
[425139022,1781548243000,-500.0,0.00013698,2]
[425138994,1781548243000,-500.0,0.00013698,2]
[425139014,1781548243000,-500.0,0.00013698,2]
[425138993,1781548243000,-500.0,0.00013698,2]
[425138998,1781548243000,-500.0,0.00013698,2]
[425138995,1781548243000,-500.0,0.00013698,2]
[425138999,1781548243000,-500.0,0.00013698,2]
[425138996,1781548243000,-500.0,0.00013698,2]
[425139001,1781548243000,-500.0,0.00013698,2]
[425139002,1781548243000,-500.0,0.00013698,2]
[425138997,1781548243000,-500.0,0.00013698,2]
[425139006,1781548243000,-500.0,0.00013698,2]
[425139010,1781548243000,-500.0,0.00013698,2]
[425139003,1781548243000,-500.0,0.00013698,2]
[425139004,1781548243000,-500.0,0.00013698,2]
[425139007,1781548243000,-500.0,0.00013698,2]
[425139009,1781548243000,-500.0,0.00013698,2]
[425139008,1781548243000,-500.0,0.00013698,2]
[425139000,1781548243000,-500.0,0.00013698,2]
[425139005,1781548243000,-500.0,0.00013698,2]
[425139012,1781548243000,-500.0,0.00013698,2]
[425139061,1781548244000,-500.0,0.00013698,2]
[425139078,1781548244000,-500.0,0.00013698,2]
[425139076,1781548244000,-500.0,0.00013698,2]
[425139074,1781548244000,-500.0,0.00013698,2]
[425139066,1781548244000,-500.0,0.00013698,2]
[425139070,1781548244000,-500.0,0.00013698,2]
[425139072,1781548244000,-500.0,0.00013698,2]
[425139068,1781548244000,-500.0,0.00013698,2]
[425139064,1781548244000,-500.0,0.00013698,2]
[425139087,1781548244000,-500.0,0.00013698,2]
[425139075,1781548244000,-500.0,0.00013698,2]
[425139088,1781548244000,-500.0,0.00013698,2]
[425139084,1781548244000,-500.0,0.00013698,2]
[425139086,1781548244000,-500.0,0.00013698,2]
[425139079,1781548244000,-500.0,0.00013698,2]
[425139082,1781548244000,-500.0,0.00013698,2]
[425139081,1781548244000,-500.0,0.00013698,2]
[425139080,1781548244000,-500.0,0.00013698,2]
[425139085,1781548244000,-500.0,0.00013698,2]
[425139083,1781548244000,-500.0,0.00013698,2]
[425139090,1781548244000,-500.0,0.00013698,2]
[425139100,1781548244000,-500.0,0.00013698,2]
[425139091,1781548244000,-500.0,0.00013698,2]
[425139062,1781548244000,-500.0,0.00013698,2]
[425139077,1781548244000,-500.0,0.00013698,2]
[425139063,1781548244000,-500.0,0.00013698,2]
[425139038,1781548244000,-500.0,0.00013698,2]
[425139056,1781548244000,-500.0,0.00013698,2]
[425139095,1781548244000,-500.0,0.00013698,2]
[425139036,1781548244000,-500.0,0.00013698,2]
[425139035,1781548244000,-500.0,0.00013698,2]
[425139037,1781548244000,-500.0,0.00013698,2]
[425139041,1781548244000,-500.0,0.00013698,2]
[425139043,1781548244000,-500.0,0.00013698,2]
[425139040,1781548244000,-500.0,0.00013698,2]
[425139039,1781548244000,-500.0,0.00013698,2]
[425139042,1781548244000,-500.0,0.00013698,2]
[425139044,1781548244000,-500.0,0.00013698,2]
[425139046,1781548244000,-500.0,0.00013698,2]
[425139060,1781548244000,-500.0,0.00013698,2]
[425139045,1781548244000,-500.0,0.00013698,2]
[425139049,1781548244000,-500.0,0.00013698,2]
[425139048,1781548244000,-500.0,0.00013698,2]
[425139051,1781548244000,-500.0,0.00013698,2]
[425139058,1781548244000,-500.0,0.00013698,2]
[425139059,1781548244000,-500.0,0.00013698,2]
[425139050,1781548244000,-500.0,0.00013698,2]
[425139053,1781548244000,-500.0,0.00013698,2]
[425139052,1781548244000,-500.0,0.00013698,2]
[425139054,1781548244000,-500.0,0.00013698,2]
[425139055,1781548244000,-500.0,0.00013698,2]
[425139057,1781548244000,-500.0,0.00013698,2]
[425139047,1781548244000,-500.0,0.00013698,2]
[425139089,1781548244000,-500.0,0.00013698,2]
[425139092,1781548244000,-500.0,0.00013698,2]
[425139101,1781548244000,-500.0,0.00013698,2]
[425139125,1781548244000,-2049.750448,0.00013699,2]
[425139117,1781548244000,-2049.750448,0.00013699,2]
[425139116,1781548244000,-2049.750448,0.00013699,2]
[425139128,1781548244000,-2049.750448,0.00013699,2]
[425139130,1781548244000,-2049.750457,0.00013699,2]
[425139129,1781548244000,-2049.750448,0.00013699,2]
[425139133,1781548244000,-150.0,0.00013701,2]
[425139131,1781548244000,-317.56,0.000137,2]
[425139134,1781548244000,-321.03275511,0.00013704,2]
[425139132,1781548244000,-150.0,0.00013701,2]
[425139135,1781548244000,-250.40554899,0.00013704,2]
[425139136,1781548244000,-150.0,0.0001371,2]
[425139139,1781548244000,-150.0,0.00013715,2]
[425139138,1781548244000,-947.871542,0.00013713,2]
[425139137,1781548244000,-150.0,0.0001371,2]
[425139141,1781548244000,-321.03275511,0.00013719,2]
[425139140,1781548244000,-8562.6,0.00013717,2]
[425139142,1781548244000,-250.40554899,0.00013719,2]
[425139145,1781548244000,-308.13,0.00013732,2]
[425139144,1781548244000,-150.0,0.00013731,2]
[425139146,1781548244000,-150.0,0.00013732,2]
[425139148,1781548244000,-321.03275511,0.00013733,2]
[425139147,1781548244000,-150.0,0.00013733,2]
[425139149,1781548244000,-150.0,0.00013738,2]
[425139093,1781548244000,-500.0,0.00013698,2]
[425139120,1781548244000,-2049.750448,0.00013699,2]
[425139118,1781548244000,-2049.750448,0.00013699,2]
[425139143,1781548244000,-150.0,0.00013722,2]
[425139127,1781548244000,-2049.750448,0.00013699,2]
[425139126,1781548244000,-2049.750448,0.00013699,2]
[425139097,1781548244000,-500.0,0.00013698,2]
[425139150,1781548244000,-150.0,0.00013742,2]
[425139099,1781548244000,-500.0,0.00013698,2]
[425139094,1781548244000,-298.46828582,0.00013698,2]
[425139096,1781548244000,-500.0,0.00013698,2]
[425139103,1781548244000,-500.52755624,0.00013698,2]
[425139112,1781548244000,-2049.750448,0.00013699,2]
[425139111,1781548244000,-2049.750448,0.00013699,2]
[425139113,1781548244000,-2049.750448,0.00013699,2]
[425139102,1781548244000,-500.0,0.00013698,2]
[425139115,1781548244000,-2049.750448,0.00013699,2]
[425139098,1781548244000,-500.0,0.00013698,2]
[425139114,1781548244000,-2049.750448,0.00013699,2]
[425139104,1781548244000,-500.0,0.00013698,2]
[425139123,1781548244000,-2049.750448,0.00013699,2]
[425139122,1781548244000,-2049.750448,0.00013699,2]
[425139119,1781548244000,-2049.750448,0.00013699,2]
[425139109,1781548244000,-151.0,0.00013699,2]
[425139121,1781548244000,-2049.750448,0.00013699,2]
[425139107,1781548244000,-200.0,0.00013699,2]
[425139110,1781548244000,-151.0,0.00013699,2]
[425139106,1781548244000,-506.2023934,0.00013698,2]
[425139108,1781548244000,-1921.01,0.00013699,2]
[425139105,1781548244000,-500.0,0.00013698,2]
[425139124,1781548244000,-2049.750448,0.00013699,2]
[425139174,1781548245000,-150.0,0.00013808,2]
[425139184,1781548245000,-150.0,0.00013833,2]
[425139177,1781548245000,-350.0,0.00013818,2]
[425139175,1781548245000,-321.03275511,0.00013808,2]